bitfinex/quotes_SOLUSD_20260220
["timestamp","ask_amount","ask_price","bid_price","bid_amount"]
[1771613238975,11.2691194,85.49,85.454,4.34842408]
[1771613239276,11.2691194,85.48,85.454,4.34842408]
[1771613239477,0.04089325,85.479,85.45,23.59821666]
[1771613239777,0.04089325,85.479,85.436,16.0530919]
[1771613239778,11.2691194,85.47,85.436,16.0530919]
[1771613239966,11.2691194,85.47,85.437,4.34842408]
[1771613240363,11.2691194,85.47,85.439,4.34842408]
[1771613240568,11.69877981,85.479,85.441,4.34842408]
[1771613241581,11.2691194,85.47,85.44,11.76369517]
[1771613241767,11.2691194,85.47,85.438,11.70439382]
[1771613241970,11.2691194,85.46,85.431,16.05375638]
[1771613242272,11.2691194,85.47,85.432,4.34842408]
[1771613242575,11.69877981,85.479,85.441,4.34842408]
[1771613242764,11.2691194,85.47,85.433,11.70507883]
[1771613242965,11.2691194,85.46,85.433,11.70507883]
[1771613243365,4.08932532,85.469,85.433,16.05350291]
[1771613243675,11.2691194,85.47,85.434,4.34842408]
[1771613243982,45.03505467,85.479,85.434,4.34842408]
[1771613244760,11.2691194,85.47,85.436,4.34842408]
[1771613245262,11.2691194,85.46,85.43,11.53672647]
[1771613245461,11.2691194,85.46,85.426,11.70603797]
[1771613245691,11.2691194,85.45,85.425,4.34842408]
[1771613246882,11.7028871,85.449,85.42,0.2]
[1771613247065,15.35844472,85.44,85.42,0.2]
[1771613247663,40.96010485,85.449,85.42,0.2]
[1771613247983,11.2691194,85.44,85.42,0.2]
[1771613248772,46.79815636,85.474,85.371,4.34842408]
[1771613248773,11.70562689,85.429,85.371,4.34842408]
[1771613248967,11.2691194,85.4,85.372,4.34842408]
[1771613249475,11.2691194,85.4,85.371,11.71357955]
[1771613249476,11.2691194,85.39,85.371,11.71357955]
[1771613249681,11.2691194,85.4,85.371,11.71357955]
[1771613249988,11.2691194,85.41,85.372,4.34842408]
[1771613250165,3.89132532,85.425,85.372,4.34842408]
[1771613250166,11.2691194,85.42,85.372,4.34842408]
[1771613250488,11.2691194,85.41,85.372,4.34842408]
[1771613251473,11.70836797,85.409,85.374,4.34842408]
[1771613253786,11.70836797,85.409,85.375,11.71303074]
[1771613254085,11.70836797,85.409,85.376,4.34842408]
[1771613254691,52.72,85.425,85.38,11.2691194]
[1771613254871,11.70319316,85.447,85.402,4.34842408]
[1771613255390,11.2691194,85.43,85.381,4.34842408]
[1771613255991,11.70562689,85.429,85.383,4.34842408]
[1771613256487,3.89132532,85.428,85.383,4.34842408]
[1771613256692,11.2691194,85.42,85.383,4.34842408]
[1771613257873,11.2691194,85.41,85.382,11.71207045]
[1771613258274,11.70836797,85.409,85.375,4.17938126]
[1771613259004,11.2691194,85.4,85.371,11.71357955]
[1771613259369,11.70836797,85.409,85.372,4.17938126]
[1771613259682,46.81940461,85.435,85.371,11.71357955]
[1771613259683,11.70590094,85.427,85.381,4.17938126]
[1771613259884,11.2691194,85.42,85.381,3.67938126]
[1771613260188,11.70699727,85.419,85.382,11.71207045]
[1771613260383,11.2691194,85.41,85.382,11.71207045]
[1771613260888,45.36081577,85.419,85.361,11.71495179]
[1771613260889,11.2691194,85.4,85.361,11.71495179]
[1771613261992,11.2691194,85.4,85.36,52.16967351]
[1771613261993,11.70973898,85.399,85.364,4.17938126]
[1771613262478,11.2691194,85.39,85.364,4.17938126]
[1771613262674,11.2691194,85.39,85.341,29.29399815]
[1771613262870,11.2691194,85.39,85.351,4.17938126]
[1771613263070,45.37041177,85.399,85.351,4.17938126]
[1771613263375,45.37041177,85.399,85.342,41.01145976]
[1771613263376,11.70973898,85.399,85.361,4.17938126]
[1771613263572,11.70973898,85.399,85.342,99.59925943]
[1771613263573,11.2691194,85.39,85.343,4.17938126]
[1771613263978,11.71001323,85.397,85.361,4.17938126]
[1771613265183,4.38632532,85.389,85.352,11.71618708]
[1771613265379,4.38632532,85.389,85.353,4.17938126]
[1771613266083,11.71124748,85.388,85.355,4.17938126]
[1771613267397,58.53722741,85.416,85.361,4.17938126]
[1771613267398,11.71040505,85.395,85.361,4.17938126]
[1771613267583,11.70971621,85.4,85.361,4.17938126]
[1771613267989,4.38632532,85.409,85.371,4.17938126]
[1771613268191,16.09474064,85.409,85.371,4.17938126]
[1771613268406,64.0091194,85.42,85.381,4.17938126]
[1771613268608,11.2691194,85.41,85.373,4.17938126]
[1771613268907,4.38632532,85.418,85.373,4.17938126]
[1771613269278,11.2691194,85.41,85.373,4.17938126]
[1771613269674,40.97449045,85.419,85.373,4.17938126]
[1771613269880,52.74,85.42,85.381,4.17938126]
[1771613270081,52.74,85.42,85.391,4.17938126]
[1771613270887,52.74,85.42,85.393,4.17938126]
[1771613271277,11.70302406,85.448,85.402,4.17938126]
[1771613271508,11.2691194,85.43,85.402,4.17938126]
[1771613273030,11.70562689,85.429,85.402,4.17938126]
[1771613273703,11.2691194,85.41,85.381,4.17938126]
[1771613274901,11.2691194,85.4,85.361,4.17938126]
[1771613275209,11.70973898,85.399,85.363,4.17938126]
[1771613276389,11.70973898,85.399,85.363,3.67938126]
[1771613277207,11.2691194,85.42,85.38,11.2691194]
[1771613277505,11.70644908,85.423,85.38,11.2691194]
[1771613277707,40.97257178,85.423,85.38,11.2691194]
[1771613278313,40.97257178,85.423,85.366,4.17938126]
[1771613278607,11.2691194,85.42,85.388,4.17938126]
[1771613278787,11.2691194,85.42,85.378,4.17938126]
[1771613278788,4.40012236,85.419,85.378,4.17938126]
[1771613278990,46.81378299,85.445,85.364,11.71454008]
[1771613278991,4.40012236,85.465,85.411,1.36291928]
[1771613279200,4.40012236,85.465,85.41,11.2691194]
[1771613279201,4.40012236,85.449,85.4,1.36291928]
[1771613279401,4.40012236,85.449,85.4,11.2691194]
[1771613279603,4.40012236,85.449,85.41,11.2691194]
[1771613279903,4.40012236,85.449,85.4,11.70960187]
[1771613279904,4.40012236,85.469,85.42,11.2691194]
[1771613280096,4.40012236,85.449,85.4,24.34164055]
[1771613280293,11.2691194,85.43,85.39,11.2691194]
[1771613280492,4.40012236,85.419,85.374,1.36291928]
[1771613280700,4.40012236,85.419,85.38,11.2691194]
[1771613280888,4.40012236,85.409,85.363,1.36291928]
[1771613281089,4.40012236,85.387,85.342,11.71755993]
[1771613281287,11.2691194,85.37,85.34,12.11580365]
[1771613281496,87.8343561,85.388,85.32,11.2691194]
[1771613281497,4.40012236,85.359,85.32,11.2691194]
[1771613282616,4.40012236,85.349,85.3,11.2691194]
[1771613282925,4.40012236,85.329,85.3,11.2691194]
[1771613283096,11.71783454,85.34,85.31,11.2691194]
[1771613283296,4.40012236,85.354,85.31,24.35398114]
[1771613283512,4.40012236,85.354,85.33,11.2691194]
[1771613283707,11.71522627,85.359,85.32,1.36291928]
[1771613283893,11.71522627,85.359,85.33,11.2691194]
[1771613284093,11.71522627,85.359,85.32,1.36291928]
[1771613284315,4.40012236,85.349,85.31,11.2691194]
[1771613284509,4.40012236,85.349,85.302,11.72293601]
[1771613284900,4.40012236,85.329,85.29,23.05556928]
[1771613285101,4.40012236,85.327,85.29,11.2691194]
[1771613285518,4.40012236,85.327,85.29,12.63203868]
[1771613286003,4.40012236,85.327,85.29,11.2691194]
[1771613286204,4.40012236,85.327,85.281,13.08873865]
[1771613286400,4.40012236,85.327,85.282,1.36291928]
[1771613286907,4.46927007,85.319,85.28,0.2]
[1771613287111,4.46927007,85.319,85.28,11.65613488]
[1771613287406,4.30289494,85.317,85.28,11.65613488]
[1771613287613,4.30289494,85.317,85.28,0.2]
[1771613287807,41.02299631,85.318,85.28,0.2]
[1771613287808,4.30289494,85.309,85.28,0.2]
[1771613288032,41.02299631,85.318,85.261,1.36291928]
[1771613288209,4.30289494,85.33,85.286,1.36291928]
[1771613288524,4.30289494,85.33,85.3,11.2691194]
[1771613288721,4.30289494,85.342,85.31,11.2691194]
[1771613288899,4.30289494,85.339,85.3,11.2691194]
[1771613289809,4.30289494,85.337,85.301,11.72319199]
[1771613290609,4.30289494,85.329,85.29,11.2691194]
[1771613291117,4.30289494,85.329,85.274,29.31698668]
[1771613291118,4.30289494,85.342,85.31,11.2691194]
[1771613291300,4.30289494,85.34,85.31,11.2691194]
[1771613291497,11.2691194,85.33,85.29,11.2691194]
[1771613291721,4.30289494,85.328,85.29,11.2691194]
[1771613291918,4.30289494,85.328,85.29,11.32002057]
[1771613293423,4.30289494,85.328,85.283,1.36291928]
[1771613293616,4.30289494,85.328,85.29,11.32002057]
[1771613294197,4.30289494,85.328,85.254,5.36086188]
[1771613294198,4.30289494,85.319,85.28,11.32002057]
[1771613294536,4.30289494,85.299,85.264,11.72827922]
[1771613294697,4.30289494,85.299,85.26,11.89700988]
[1771613295018,11.32002057,85.3,85.26,11.89700988]
[1771613295019,4.30289494,85.289,85.26,23.21703045]
[1771613295222,4.30289494,85.279,85.26,0.2]
[1771613296115,11.32002057,85.32,85.23,0.2]
[1771613296116,4.30289494,85.267,85.23,0.2]
[1771613296322,4.30289494,85.259,85.231,11.73282021]
[1771613296531,4.30289494,85.259,85.23,0.2]
[1771613297226,4.30289494,85.267,85.23,11.52002057]
[1771613297949,4.30289494,85.239,85.19,1.36291928]
[1771613298215,4.30289494,85.239,85.211,11.73557404]
[1771613298422,4.30289494,85.238,85.2,11.88151125]
[1771613298622,4.30289494,85.219,85.183,11.73939399]
[1771613298836,4.30289494,85.219,85.171,11.74108558]
[1771613299003,4.30289494,85.232,85.2,11.32002057]
[1771613300004,4.30289494,85.209,85.171,11.74108558]
[1771613300304,4.30289494,85.219,85.19,11.32002057]
[1771613300815,4.30289494,85.219,85.18,11.32002057]
[1771613301121,4.30289494,85.199,85.17,11.52002057]
[1771613301621,4.30289494,85.199,85.17,11.88131736]
[1771613301800,99.7313121,85.229,85.15,11.32002057]
[1771613301801,4.30289494,85.189,85.15,11.32002057]
[1771613302005,4.30289494,85.169,85.14,11.91192971]
[1771613302202,11.32002057,85.2,85.16,11.32002057]
[1771613302203,4.30289494,85.199,85.16,11.32002057]
[1771613302423,4.30289494,85.199,85.141,11.74522263]
[1771613302424,4.30289494,85.21,85.18,11.32002057]
[1771613302637,4.30289494,85.209,85.17,11.32002057]
[1771613303831,4.30289494,85.22,85.19,11.32002057]
[1771613304123,4.30289494,85.22,85.18,1.36291928]
[1771613304124,4.30289494,85.219,85.18,11.32002057]
[1771613304310,4.30289494,85.217,85.181,11.73970721]
[1771613304706,4.30289494,85.217,85.18,11.32002057]
[1771613305033,4.30289494,85.199,85.17,11.32002057]
[1771613305456,11.32002057,85.21,85.18,11.32002057]
[1771613305457,4.30289494,85.21,85.18,11.32002057]
[1771613305607,4.30289494,85.209,85.18,11.32002057]
[1771613305809,4.30289494,85.209,85.17,11.32002057]
[1771613306020,4.30289494,85.209,85.158,0.14216157]
[1771613306306,4.30289494,85.207,85.17,11.32002057]
[1771613306522,4.30289494,85.207,85.171,11.74108558]
[1771613307309,4.30289494,85.207,85.17,11.32002057]
[1771613307712,4.30289494,85.218,85.18,11.32002057]
[1771613307916,16.0376427,85.217,85.18,11.32002057]
[1771613308314,4.30289494,85.217,85.18,11.32002057]
[1771613308525,4.30289494,85.217,85.19,11.32002057]
[1771613308911,11.73488546,85.216,85.19,11.32002057]
[1771613309114,11.73488546,85.216,85.18,11.32002057]
[1771613309324,4.30289494,85.215,85.18,11.32002057]
[1771613310214,11.32002057,85.22,85.181,1.36291928]
[1771613310414,4.30289494,85.223,85.19,11.32002057]
[1771613310615,4.30289494,85.221,85.158,1.36291928]
[1771613310828,11.73405928,85.222,85.122,46.99098006]
[1771613310829,4.30289494,85.199,85.161,0.14216157]
[1771613311439,4.30289494,85.199,85.17,11.32002057]
[1771613311643,4.30289494,85.209,85.165,1.36291928]
[1771613311820,4.30289494,85.209,85.17,11.32002057]
[1771613312516,4.30289494,85.199,85.166,11.74177488]
[1771613313122,4.30289494,85.199,85.17,11.32002057]
[1771613313323,11.32002057,85.21,85.18,11.32002057]
[1771613313516,11.73584949,85.209,85.18,11.32002057]
[1771613313912,4.30289494,85.208,85.17,11.32002057]
[1771613314528,4.30289494,85.199,85.166,11.74177488]
[1771613314727,4.30289494,85.197,85.17,11.32002057]
[1771613316720,4.30289494,85.197,85.16,11.32002057]
[1771613316939,4.30289494,85.189,85.15,11.32002057]
[1771613317136,4.30289494,85.189,85.154,11.74329989]
[1771613317522,4.30289494,85.189,85.151,11.74384329]
[1771613318633,4.33892215,85.187,85.16,11.32002057]
[1771613318831,4.33892215,85.187,85.151,11.74384329]
[1771613319137,4.33892215,85.179,85.142,11.74508468]
[1771613319527,4.33892215,85.179,85.15,11.32002057]
[1771613319730,41.0855989,85.188,85.16,11.32002057]
[1771613319731,11.73874254,85.188,85.16,11.32002057]
[1771613320035,11.73874254,85.188,85.142,11.74508468]
[1771613320036,4.33892215,85.179,85.142,11.74508468]
[1771613320623,4.33892215,85.177,85.142,11.74508468]
[1771613321018,11.73933914,85.184,85.15,11.32002057]
[1771613321223,29.34372016,85.198,85.16,11.32002057]
[1771613321224,11.73832916,85.191,85.16,11.32002057]
[1771613321420,4.33892215,85.192,85.16,11.32002057]
[1771613321620,4.33892215,85.202,85.17,11.32002057]
[1771613321841,4.33892215,85.202,85.146,0.14216157]
[1771613321842,11.73598723,85.208,85.18,11.32002057]
[1771613322037,4.33892215,85.207,85.17,11.32002057]
[1771613322546,4.33892215,85.205,85.171,11.74108558]
[1771613323063,4.33892215,85.199,85.16,11.32002057]
[1771613323231,4.33892215,85.199,85.17,11.32002057]
[1771613323836,11.7362627,85.206,85.17,11.32002057]
[1771613323837,11.7362627,85.206,85.18,11.32002057]
[1771613324146,4.33892215,85.205,85.17,11.32002057]
[1771613324522,4.33892215,85.205,85.16,1.36291928]
[1771613324523,11.32002057,85.2,85.169,11.74132033]
[1771613324727,4.33892215,85.199,85.169,11.74132033]
[1771613324945,4.33892215,85.199,85.161,11.74244556]
[1771613325144,11.32002057,85.2,85.16,11.32002057]
[1771613325145,4.33892215,85.189,85.16,11.32002057]
[1771613325329,4.33892215,85.189,85.15,11.32002057]
[1771613326547,4.33892215,85.189,85.16,11.32002057]
[1771613326737,4.33892215,85.187,85.16,23.06262162]
[1771613327123,4.33892215,85.187,85.16,11.32002057]
[1771613327739,4.33892215,85.187,85.151,11.74384329]
[1771613328448,11.73874254,85.188,85.143,11.74481962]
[1771613328449,4.33892215,85.179,85.143,11.74481962]
[1771613328621,4.33892215,85.167,85.133,11.74625322]
[1771613328826,4.33892215,85.167,85.14,11.32002057]
[1771613329122,4.33892215,85.167,85.104,5.36086188]
[1771613329123,11.32002057,85.15,85.106,11.75003264]
[1771613329333,4.33892215,85.149,85.12,11.32002057]
[1771613329541,4.33892215,85.149,85.11,11.32002057]
[1771613329864,4.33892215,85.149,85.095,29.37864161]
[1771613330039,4.33892215,85.139,85.1,11.32002057]
[1771613330239,4.33892215,85.139,85.11,11.32002057]
[1771613330847,16.08448571,85.139,85.111,11.74936259]
[1771613331340,11.74411913,85.149,85.12,11.32002057]
[1771613331748,11.74411913,85.149,85.113,1.36291928]
[1771613332542,4.33892215,85.148,85.113,1.36291928]
[1771613333040,4.33892215,85.148,85.11,22.83353045]
[1771613333041,4.33892215,85.139,85.11,11.51350988]
[1771613333245,4.33892215,85.139,85.111,0.14216157]
[1771613334763,4.33892215,85.149,85.12,11.32002057]
[1771613335453,4.33892215,85.156,85.121,1.50508085]
[1771613335653,4.33892215,85.165,85.131,0.14216157]
[1771613336869,4.33892215,85.165,85.131,11.88876386]
[1771613337243,4.33892215,85.163,85.131,11.88876386]
[1771613338249,4.33892215,85.163,85.11,11.84691943]
[1771613338559,4.33892215,85.159,85.113,1.36291928]
[1771613338760,16.08180009,85.158,85.121,11.89014385]
[1771613338957,11.32002057,85.16,85.122,1.36291928]
[1771613339160,4.33892215,85.164,85.131,0.14216157]
[1771613339756,16.08097278,85.164,85.131,0.14216157]
[1771613340176,3.69383402,85.205,85.131,0.14216157]
[1771613340177,4.33892215,85.173,85.141,0.14216157]
[1771613340340,11.74094772,85.172,85.141,1.50508085]
[1771613340855,50.63960304,85.205,85.141,1.50508085]
[1771613340856,11.73998285,85.179,85.151,11.74384329]
[1771613341055,4.33892215,85.183,85.151,11.74384329]
[1771613341255,11.73956939,85.182,85.151,11.74384329]
[1771613341462,4.33892215,85.194,85.152,1.50508085]
[1771613341764,4.33892215,85.194,85.161,0.14216157]
[1771613342367,4.33892215,85.224,85.18,12.68293985]
[1771613342572,0.2,85.25,85.2,11.32002057]
[1771613342573,4.33892215,85.229,85.2,11.32002057]
[1771613342779,4.33892215,85.227,85.192,11.73819137]
[1771613343363,4.33892215,85.227,85.192,41.08366981]
[1771613343568,15.85894272,85.25,85.201,1.50508085]
[1771613343760,0.2,85.25,85.221,0.14216157]
[1771613344369,4.53892215,85.25,85.221,0.14216157]
[1771613344958,11.32002057,85.24,85.202,1.36291928]
[1771613345156,4.33892215,85.239,85.202,1.36291928]
[1771613345475,4.33892215,85.239,85.201,0.14216157]
[1771613346575,4.33892215,85.239,85.21,11.32002057]
[1771613346774,4.33892215,85.239,85.201,0.14216157]
[1771613346979,4.20225599,85.229,85.191,0.14216157]
[1771613347156,11.73185668,85.238,85.18,52.40947818]
[1771613347157,4.41005217,85.219,85.18,52.40947818]
[1771613347666,4.41005217,85.219,85.19,11.32002057]
[1771613348268,0.2,85.25,85.19,11.32002057]
[1771613348269,4.41005217,85.239,85.201,0.14216157]
[1771613348570,4.41005217,85.239,85.21,11.32002057]
[1771613349178,4.41005217,85.238,85.21,11.32002057]
[1771613349762,4.41005217,85.238,85.201,0.14216157]
[1771613350055,4.41005217,85.238,85.201,11.87910138]
[1771613350457,4.41005217,85.238,85.201,0.14216157]
[1771613350660,4.41005217,85.238,85.202,11.73681368]
[1771613350864,4.41005217,85.238,85.21,11.32002057]
[1771613351071,4.41005217,85.237,85.21,11.32002057]
[1771613351470,4.41005217,85.237,85.211,11.73557404]
[1771613351666,4.41005217,85.237,85.21,11.32002057]
[1771613352778,4.41005217,85.237,85.202,11.73681368]
[1771613353175,4.41005217,85.235,85.202,11.73681368]
[1771613353370,4.41005217,85.235,85.197,11.73747832]
[1771613353671,3.80995368,85.235,85.201,0.14216157]
[1771613353874,3.80995368,85.235,85.21,11.3425431]
[1771613354272,3.80995368,85.235,85.201,0.14216157]
[1771613355369,11.73240725,85.234,85.201,11.87911301]
[1771613355561,4.41005217,85.233,85.201,11.87911301]
[1771613356574,11.3425431,85.23,85.192,11.73814079]
[1771613356779,4.41005217,85.219,85.187,11.73887384]
[1771613357565,4.41005217,85.217,85.181,11.73970721]
[1771613357972,4.41005217,85.217,85.181,41.08897523]
[1771613359682,11.73398054,85.223,85.19,11.3425431]
[1771613359866,16.14403271,85.223,85.191,1.96301777]
[1771613360185,4.41005217,85.222,85.191,0.14216157]
[1771613361490,4.41005217,85.222,85.2,11.3425431]
[1771613361670,4.41005217,85.222,85.201,11.73695144]
[1771613361866,11.73345457,85.227,85.201,11.73695144]
[1771613362365,4.41005217,85.226,85.192,1.96301777]
[1771613362565,4.41005217,85.226,85.191,11.88040809]
[1771613362785,4.41005217,85.226,85.2,11.3425431]
[1771613363881,11.73364623,85.225,85.191,13.84342586]
[1771613364186,4.41005217,85.224,85.191,13.84342586]
[1771613364865,4.41005217,85.224,85.191,11.88040809]
[1771613365469,4.41005217,85.224,85.18,41.02577203]
[1771613365470,11.3425431,85.22,85.18,11.67628555]
[1771613365673,4.41005217,85.219,85.17,11.3425431]
[1771613365869,16.14459358,85.219,85.18,11.3425431]
[1771613366076,4.41005217,85.218,85.181,43.051993]
[1771613366372,4.41005217,85.218,85.181,13.70272498]
[1771613366770,4.41005217,85.218,85.181,11.73970721]
[1771613368489,4.41005217,85.216,85.181,11.73970721]
[1771613368695,4.41005217,85.216,85.149,3.69383402]
[1771613368696,4.41005217,85.209,85.175,11.74040151]
[1771613369476,4.41005217,85.209,85.176,1.96301777]
[1771613369701,4.41005217,85.207,85.171,11.88324715]
[1771613370193,4.41005217,85.207,85.172,1.96301777]
[1771613370372,4.41005217,85.218,85.181,2.10517934]
[1771613370687,4.41005217,85.228,85.191,2.10517934]
[1771613370874,11.73385791,85.224,85.191,2.10517934]
[1771613371071,4.41005217,85.223,85.191,2.10517934]
[1771613371780,4.41005217,85.223,85.192,11.73819137]
[1771613371988,4.41005217,85.219,85.191,0.14216157]
[1771613372595,4.41005217,85.219,85.18,11.7398038]
[1771613372888,4.41005217,85.209,85.172,11.74089418]
[1771613373265,11.3425431,85.2,85.161,11.74246427]
[1771613373499,4.41005217,85.199,85.161,11.74246427]
[1771613373684,4.41005217,85.199,85.161,41.09862495]
[1771613374010,4.41005217,85.197,85.161,11.74246427]
[1771613374369,4.41005217,85.248,85.19,11.3425431]
[1771613374564,11.73034287,85.249,85.182,0.14216157]
[1771613374565,4.41005217,85.229,85.182,0.14216157]
[1771613376498,4.41005217,85.227,85.182,11.88173096]
[1771613377078,4.49830102,85.219,85.182,11.73956939]
[1771613377283,4.49830102,85.219,85.172,13.70396549]
[1771613377671,4.49830102,85.209,85.172,11.74094772]
[1771613377880,4.49830102,85.209,85.173,1.96301777]
[1771613379981,4.49830102,85.209,85.175,1.96301777]
[1771613380181,4.49830102,85.229,85.19,11.3425431]
[1771613380698,4.49830102,85.229,85.182,1.96301777]
[1771613380885,4.49830102,85.219,85.182,1.96301777]
[1771613382992,4.49830102,85.217,85.183,11.73943157]
[1771613383297,4.49830102,85.217,85.19,11.3425431]
[1771613383491,4.49830102,85.217,85.183,41.08801051]
[1771613383887,4.49830102,85.217,85.183,11.73943157]
[1771613384198,4.49830102,85.209,85.165,29.35454972]
[1771613384377,4.49830102,85.209,85.17,11.3425431]
[1771613384583,4.49830102,85.199,85.164,1.96301777]
[1771613385294,4.49830102,85.189,85.145,31.32458088]
[1771613385479,4.49830102,85.189,85.15,11.47913323]
[1771613385999,11.73736472,85.198,85.15,11.47913323]
[1771613386000,4.49830102,85.179,85.15,11.47913323]
[1771613386303,4.49830102,85.169,85.15,11.47913323]
[1771613386797,4.49830102,85.169,85.137,0.14216157]
[1771613386994,4.49830102,85.189,85.151,1.96301777]
[1771613387191,4.49830102,85.189,85.137,0.14216157]
[1771613387192,11.73874254,85.188,85.161,11.74246427]
[1771613387379,11.73874254,85.188,85.161,13.70548204]
[1771613387982,4.49830102,85.196,85.17,11.3425431]
[1771613388285,4.49830102,85.196,85.162,1.96301777]
[1771613388982,11.73750249,85.197,85.158,11.74276071]
[1771613388983,11.3425431,85.19,85.158,11.74276071]
[1771613389182,41.08125872,85.197,85.152,1.96301777]
[1771613389183,16.23704356,85.188,85.152,1.96301777]
[1771613389381,16.23704356,85.188,85.16,11.3425431]
[1771613390381,3.69383402,85.225,85.16,11.3425431]
[1771613390382,16.23433612,85.208,85.171,1.96301777]
[1771613390581,4.49830102,85.207,85.17,11.3425431]
[1771613390791,4.49830102,85.207,85.164,0.14216157]
[1771613391000,4.49830102,85.199,85.164,0.14216157]
[1771613391201,4.49830102,85.198,85.164,11.8842122]
[1771613391399,11.73725248,85.199,85.151,11.74384329]
[1771613391400,4.49830102,85.189,85.151,11.74384329]
[1771613393402,4.49830102,85.187,85.151,11.74384329]
[1771613395484,4.49830102,85.185,85.151,11.74384329]
[1771613397702,11.3425431,85.18,85.151,11.74384329]
[1771613398002,4.49830102,85.179,85.151,11.74384329]
[1771613399007,4.49830102,85.179,85.151,13.70686106]
[1771613399412,4.49830102,85.188,85.152,1.96301777]
[1771613399599,4.49830102,85.186,85.152,1.96301777]
[1771613399800,4.49830102,85.184,85.153,11.74356746]
[1771613400625,4.49830102,85.199,85.161,1.96301777]
[1771613400815,4.49830102,85.219,85.18,1.96301777]
[1771613401011,4.49830102,85.219,85.19,11.3425431]
[1771613401608,4.49830102,85.209,85.167,0.14216157]
[1771613401812,4.49830102,85.207,85.172,11.74094772]
[1771613401994,4.49830102,85.207,85.173,1.96301777]
[1771613402195,11.73553529,85.212,85.181,1.96301777]
[1771613402397,4.49830102,85.211,85.181,1.96301777]
[1771613403210,4.49830102,85.211,85.174,0.14216157]
[1771613403804,4.49830102,85.211,85.174,41.23451369]
[1771613404010,4.49830102,85.209,85.18,11.3425431]
[1771613404213,4.49830102,85.209,85.177,1.96301777]
[1771613404516,4.49830102,85.218,85.19,11.3425431]
[1771613404816,4.49830102,85.219,85.175,1.96301777]
[1771613405113,11.73331835,85.228,85.174,11.74067203]
[1771613405114,4.49830102,85.209,85.174,11.74067203]
[1771613405818,11.73598723,85.208,85.169,11.74132421]
[1771613406004,4.49830102,85.207,85.169,11.74132421]
[1771613406402,4.49830102,85.207,85.17,11.3425431]
[1771613407417,4.05991561,85.199,85.17,11.3425431]
[1771613407797,3.69383402,85.235,85.169,11.74132421]
[1771613407798,4.05991561,85.218,85.19,11.3425431]
[1771613407999,15.79462812,85.218,85.191,11.73832916]
[1771613408310,4.05991561,85.228,85.191,13.70134693]
[1771613408707,4.05991561,85.219,85.18,11.3425431]
[1771613408898,4.05991561,85.199,85.161,2.10517934]
[1771613410014,11.73736472,85.198,85.163,0.14216157]
[1771613410211,4.05991561,85.197,85.163,0.14216157]
[1771613410412,4.05991561,85.189,85.14,11.3425431]
[1771613410622,4.05991561,85.179,85.14,11.3425431]
[1771613410810,4.05991561,85.179,85.136,11.74591242]
[1771613411012,4.05991561,85.179,85.137,0.14216157]
[1771613411342,4.05991561,85.169,85.126,1.96301777]
[1771613411540,4.05991561,85.169,85.12,11.3425431]
[1771613411541,4.05991561,85.139,85.092,1.96301777]
[1771613411704,4.05991561,85.109,85.08,0.1]
[1771613411904,11.3425431,85.11,85.081,1.96301777]
[1771613412101,11.3425431,85.1,85.081,1.96301777]
[1771613412300,4.05991561,85.129,85.082,1.96301777]
[1771613412537,41.10683077,85.144,85.061,11.75622234]
[1771613412538,3.69383402,85.097,85.061,11.75622234]
[1771613412737,11.3425431,85.08,85.06,0.1]
[1771613412903,11.3425431,85.08,85.06,4.25106486]
[1771613413225,11.3425431,85.1,85.06,0.1]
[1771613413431,11.3425431,85.07,85.02,0.1]
[1771613413624,11.3425431,85.03,85.02,0.1]
[1771613413806,11.3425431,85.03,85.021,4.5]
[1771613414006,11.76069341,85.029,85.02,1e-08]
[1771613414205,29.39768583,85.041,85.02,1e-08]
[1771613414206,11.75765129,85.051,85.02,1e-08]
[1771613414423,11.40082391,85.05,85.02,1e-08]
[1771613415315,105.78231388,85.081,85.02,1e-08]
[1771613415316,11.75677281,85.058,85.02,11.40082392]
[1771613415635,4.05991561,85.039,85.02,1e-08]
[1771613415823,4.05991561,85.029,84.96,11.40082391]
[1771613416009,11.40082391,85.0,84.962,4.15106486]
[1771613416209,11.76484429,84.999,84.962,4.15106486]
[1771613416529,11.76193836,85.02,84.981,4.15106486]
[1771613416732,11.75986304,85.036,84.991,4.15106486]
[1771613416921,11.75986304,85.036,85.001,4.15106486]
[1771613417824,4.05991561,85.029,84.99,11.40082391]
[1771613418029,4.05991561,85.029,84.991,4.15106486]
[1771613418219,41.16291103,85.028,84.98,11.40082391]
[1771613418411,11.40082391,85.0,84.961,4.15106486]
[1771613418613,4.05991561,84.989,84.95,11.40082391]
[1771613418808,4.05991561,84.979,84.946,1e-08]
[1771613419121,11.40082391,85.02,84.907,4.15106486]
[1771613419122,4.05991561,84.959,84.907,4.15106486]
[1771613419423,11.40082391,84.96,84.931,4.15106486]
[1771613419727,4.05991561,84.988,84.921,4.15106486]
[1771613419931,4.05991561,84.969,84.921,4.15106486]
[1771613420132,4.05991561,84.969,84.907,5.36086188]
[1771613420133,11.76761317,84.979,84.941,4.15106486]
[1771613420329,11.76761317,84.979,84.951,4.15106486]
[1771613420534,4.05991561,84.978,84.94,11.54298548]
[1771613420735,47.04048205,85.034,84.97,11.40082391]